[Event "Tirnavia Reti Memorial-IM 2022"]
[Site "Trnava"]
[Date "2022.08.12"]
[Round "3.10"]
[White "Leszko, Bence"]
[Black "Konyves, Almos"]
[Result "1/2-1/2"]
[ECO "A11"]
[WhiteElo "2241"]
[BlackElo "2229"]
[Annotator "TA"]
[PlyCount "63"]
[EventDate "2022.08.10"]
[EventType "tourn"]
[EventCountry "SVK"]
[SourceTitle "playchess.com"]
[Source "ChessBase"]
[SourceQuality "1"]
[TimeControl "40/5400+30:1800+30"]

{[%evp 9,63,0,0,0,0,0,0,-9,3,0,18,14,20,9,16,-2,-2,4,34,39,47,44,37,33,33,21,39,20,37,-18,-7,-18,-8,-14,-26,-41,-34,-37,-37,-43,-20,-42,-37,-34,-23,-19,-16,-12,-24,-54,0,0,0,0,8,0]} 1. Nf3 {[%emt 0:07:45]} d5 {[%emt 0:00:48]} 2. g3 {[%emt 0:00:09]} c6 {[%emt 0:00:18]} 3. Bg2 {[%emt 0:00:10]} Bg4 {[%emt 0:00:16]} 4. c4 {[%emt 0:00:08]} e6 {[%emt 0:02:44]} 5. Ne5 {[%emt 0:01:13]} Bf5 {[%emt 0:01:06]} 6. O-O {[%emt 0:02:14] A11: English Opening: 1...c6.} Nf6 {[%emt 0:07:23]} 7. cxd5 {[%emt 0:00:27]} exd5 {[%emt 0:00:22]} 8. d4 {[%emt 0:00:47]} Bd6 {[%emt 0:05:02]} 9. Nc3 {[%emt 0:01:35]} Nbd7 {[%emt 0:02:49]} 10. Bf4 {[%emt 0:02:26][%cal Oe5c6] [#] And now Nxc6! would win.} Qe7 {[%emt 0:02:45][%cal Rd7e5]} 11. Nxd7 {[%emt 0:00:07]} Qxd7 {[%emt 0:01:04]} 12. Bxd6 {[%emt 0:04:20]} Qxd6 {[%emt 0:00:05]} 13. f3 {[%emt 0:00:17]} Qd7 {[%emt 0:18:50]} 14. e4 {[%emt 0:01:34] [#]} Be6 $146 {[%emt 0:01:46]} ({Predecessor:} 14... dxe4 15. fxe4 Bh3 16. Qd3 Bxg2 17. Kxg2 O-O 18. Rad1 Rad8 19. a3 Qg4 20. Rf4 Qg6 {1-0 (46) Stefanov,J-Rautenstrauch,H Krakow 1964}) 15. e5 {[%emt 0:00:46]} Ng8 {[%emt 0:00:06]} 16. b4 {[%emt 0:01:03]} Ne7 {[%emt 0:00:52]} 17. Qd3 {[%emt 0:02:19]} Bf5 {[%emt 0:19:08]} 18. Qe2 {[%emt 0:00:28]} O-O {[%emt 0:05:51]} 19. Rae1 {[%emt 0:03:45]} (19. a4) ({White should try} 19. a4 $14) 19... b5 $11 {[%emt 0:07:30]} 20. g4 {[%emt 0:06:48]} Be6 {[%emt 0:00:06]} 21. h3 {[%emt 0:00:53]} a5 {[%emt 0:03:25]} 22. a3 {[%emt 0:02:01]} h5 {[%emt 0:01:23]} 23. Qd2 {[%emt 0:01:46]} hxg4 {[%emt 0:01:59]} 24. fxg4 {[%emt 0:01:04]} Ng6 {[%emt 0:01:05]} 25. Ne2 {[%emt 0:01:54]} axb4 {[%emt 0:01:04]} 26. axb4 {[%emt 0:00:00]} Ra3 {[%emt 0:00:10]} 27. Ra1 {[%emt 0:03:22]} Rfa8 {[%emt 0:00:05]} 28. Rxa3 {[%emt 0:01:23]} Rxa3 {[%emt 0:00:04]} 29. Rf3 {[%emt 0:02:20]} Qa7 {[%emt 0:03:13]} ({Black should play} 29... Ra1+ $15 30. Rf1 Ra6) 30. Rxa3 {[%emt 0:01:13] The position is equal.} Qxa3 {[%emt 0:00:03]} 31. Qc3 {[%emt 0:00:15]} Qa2 {[%emt 0:01:32]} 32. Nc1 {[%emt 0:00:11] Weighted Error Value: White=0.08 (flawless) /Black=0.08 (flawless)} 1/2-1/2

[Event "Tirnavia Reti Memorial-IM 2022"]
[Site "Trnava"]
[Date "2022.08.13"]
[Round "4.3"]
[White "Finek, Vaclav"]
[Black "Czebe, Attila"]
[Result "1/2-1/2"]
[ECO "A27"]
[WhiteElo "2393"]
[BlackElo "2385"]
[Annotator "TA"]
[PlyCount "64"]
[EventDate "2022.08.10"]
[EventType "tourn"]
[EventCountry "SVK"]
[SourceTitle "playchess.com"]
[Source "ChessBase"]
[SourceQuality "1"]
[TimeControl "40/5400+30:1800+30"]

{[%evp 15,64,35,37,35,46,43,43,46,78,36,35,18,53,13,14,0,0,0,0,0,0,0,0,0,0,0,0,0,0,0,3,0,161,158,150,147,168,0,0,0,0,0,0,0,0,0,0,0,0,0,0]} 1. Nf3 {[%emt 0:00:05]} g6 {[%emt 0:00:17]} 2. c4 {[%emt 0:01:33]} Bg7 {[%emt 0:00:06]} 3. d4 {[%emt 0:00:39]} d6 {[%emt 0:00:40]} 4. g3 {[%emt 0:00:37]} e5 {[%emt 0:00:00]} 5. Nc3 {[%emt 0:00:39]} exd4 {[%emt 0:00:00]} 6. Nxd4 {[%emt 0:00:04]} Nc6 {[%emt 0:01:23]} 7. Nxc6 {[%emt 0:00:06]} bxc6 {[%emt 0:00:03]} 8. Bg2 {[%emt 0:00:06]} Ne7 {[%emt 0:00:25]} 9. O-O {[%emt 0:00:07] A27: English Opening: Three Knights Variation.} Be6 {[%emt 0:01:36] [#]} 10. Be3 $146 {[%emt 0:09:34]} ({Predecessor:} 10. c5 d5 11. Bf4 Qd7 12. Qd2 h6 13. Rad1 g5 14. Be3 Nf5 15. Qc1 Nxe3 16. Qxe3 O-O {1-0 (38) Rakhmanov,A (2653)-Djordjevic,V (2350) Chess.com INT 2021}) 10... O-O {[%emt 0:02:47]} 11. Bd4 {[%emt 0:00:18] White is slightly better.} f6 {[%emt 0:00:11][%cal Bf7f6,Bf6f5][%mdl 32]} 12. b3 {[%emt 0:08:32] White is more active.} Qd7 {[%emt 0:02:24]} 13. e4 {[%emt 0:03:08]} Bh3 {[%emt 0:07:55]} 14. Qd3 {[%emt 0:12:19]} c5 {[%emt 0:00:30] aiming for ...Bxg2.} 15. Be3 {[%emt 0:00:30]} (15. Bxh3 {looks sharper.} Qxh3 16. Be3 f5 17. Nd5) 15... Bxg2 {[%emt 0:00:30]} 16. Kxg2 {[%emt 0:00:30]} f5 {[%emt 0:00:30]} 17. Rae1 {[%emt 0:00:30]} Bxc3 {[%emt 0:00:44]} 18. Qxc3 {[%emt 0:00:50]} fxe4 {[%emt 0:01:38]} 19. Bh6 {[%emt 0:29:09][%csl Gh6][%cal Rc3g7]} Rf7 {[%emt 0:00:09] Inhibits Qg7+. Hoping for ...Nf5.} 20. Rxe4 {[%emt 0:00:55]} Nf5 {[%emt 0:00:08]} 21. Bg5 {[%emt 0:02:08]} Qc6 {[%emt 0:25:47]} 22. f3 {[%emt 0:04:22]} Nd4 {[%emt 0:00:18]} 23. Re3 {[%emt 0:01:08]} h6 $2 {[%emt 0:04:36]} (23... Nf5 $11) 24. Bxh6 $18 {[%emt 0:02:29]} Nf5 {[%emt 0:02:53] [#]} 25. Re6 $1 {[%emt 0:03:05][%cal Og3g4] Strongly threatening g4!} Qd7 {[%emt 0:02:12] [#]} (25... Re8 26. Rxe8+) 26. Rfe1 {[%emt 0:04:58]} Nxh6 $11 {[%emt 0:00:10] The position is equal.} 27. Rxg6+ {[%emt 0:01:19]} Kh7 {[%emt 0:00:02]} 28. Ree6 {[%emt 0:02:08] Really sharp!} Nf5 {[%emt 0:00:08] ...Re8 is the strong threat.} 29. Qd3 {[%emt 0:03:27]} Re8 {[%emt 0:05:11]} 30. Qe4 {[%emt 0:04:48]} Rxe6 {[%emt 0:01:16]} 31. Rxe6 {[%emt 0:00:04] Threatens to win with g4.} Kg7 {[%emt 0:03:07]} 32. g4 {[%emt 0:01:08]} Ne7 {[%emt 0:16:16] Weighted Error Value: White=0.15 (very precise) /Black=0.19 (very precise)} 1/2-1/2

[Event "Tirnavia Reti Memorial-IM 2022"]
[Site "Trnava"]
[Date "2022.08.13"]
[Round "4.4"]
[White "Stevik, Patrik"]
[Black "Velicka, Petr"]
[Result "1/2-1/2"]
[ECO "A11"]
[WhiteElo "2126"]
[BlackElo "2384"]
[Annotator "TA"]
[PlyCount "127"]
[EventDate "2022.08.10"]
[EventType "tourn"]
[EventCountry "SVK"]
[SourceTitle "playchess.com"]
[Source "ChessBase"]
[SourceQuality "1"]
[TimeControl "40/5400+30:1800+30"]

{[%evp 9,127,22,29,17,12,15,25,21,30,27,25,34,34,17,17,18,18,3,7,-9,0,-21,-11,-13,-12,-24,0,-26,-19,-101,-101,-101,-101,-101,-101,-101,-101,-99,-97,-99,-104,-101,-106,-107,-94,-101,-94,-98,-87,-89,-85,-85,-85,-85,-85,-85,-85,-85,-85,-119,-116,-116,-85,-85,-56,-120,-85,-90,-85,-85,-85,-85,-85,-114,-114,-119,-114,-119,-85,-85,-85,-85,-85,-85,-85,-142,-114,-113,-113,-118,-105,-140,-140,-150,0,0,0,0,0,0,0,0,0,0,0,0,0,0,0,0,0,0,0,0,0,0,0,0,0,0]} 1. c4 {[%emt 0:00:17]} c6 {[%emt 0:00:35]} 2. Nf3 {[%emt 0:00:22]} d5 {[%emt 0:00:08]} 3. e3 {[%emt 0:00:03]} Nf6 {[%emt 0:00:41]} 4. Nc3 {[%emt 0:00:27]} Bg4 {[%emt 0:02:27]} 5. Qb3 {[%emt 0:00:35]} Qb6 {[%emt 0:00:25]} 6. Qxb6 {[%emt 0:02:51] A11: English Opening: 1...c6.} (6. Ne5 {seems wilder.} Qxb3 7. axb3 Bf5 8. cxd5 Nxd5 9. Nxd5 cxd5 10. Bb5+) 6... axb6 {[%emt 0:00:13]} 7. cxd5 {[%emt 0:00:05]} Bxf3 {[%emt 0:01:17]} (7... Nxd5 {is more complex.} 8. Nxd5 cxd5 9. Ne5 Be6) 8. gxf3 {[%emt 0:00:03] White has an edge.} Nxd5 {[%emt 0:00:10]} 9. Nxd5 {[%emt 0:02:05]} cxd5 {[%emt 0:00:08]} 10. Bb5+ {[%emt 0:00:29]} Nc6 {[%emt 0:00:09]} 11. b3 {[%emt 0:01:58]} e6 {[%emt 0:01:39]} 12. Bb2 {[%emt 0:01:22]} Rg8 {[%emt 0:00:32] [#]} 13. Rg1 $146 {[%emt 0:02:02]} ({Predecessor:} 13. a3 g6 14. Ke2 Kd7 15. b4 Bg7 16. d4 Rgc8 17. Rac1 Kd8 18. Bd3 Ne7 19. Kd2 Rxc1 20. Rxc1 {½-½ (25) Sunilduth Lyna,N (2575)-Bluebaum,M (2611) Zuerich 2018}) 13... g6 {[%emt 0:00:40]} 14. Ke2 {[%emt 0:05:23]} Kd7 {[%emt 0:02:38]} 15. f4 {[%emt 0:05:52]} Ba3 {[%emt 0:02:48]} 16. Bc3 {[%emt 0:07:56]} Ke7 {[%emt 0:01:55]} 17. Rab1 {[%emt 0:03:51]} Bb4 {[%emt 0:15:59]} 18. Bxc6 {[%emt 0:09:20]} Bxc3 {[%emt 0:02:11]} 19. Ba4 {[%emt 0:05:36]} (19. Bxd5 $11 Rxa2 20. Bxb7) 19... Bb4 $17 {[%emt 0:00:44] ...Ra5 is the strong threat.} 20. Rgc1 {[%emt 0:01:06]} Bd6 {[%emt 0:00:12] Against Rc7+} 21. Bb5 {[%emt 0:10:29]} Rxa2 {[%emt 0:00:38]} 22. Ra1 {[%emt 0:00:28]} Rga8 {[%emt 0:10:34]} 23. Rxa2 {[%emt 0:01:30]} Rxa2 {[%emt 0:00:11][%mdl 4096] Endgame KRB-KRB} 24. Ba4 {[%emt 0:06:27]} Kd8 {[%emt 0:02:46]} 25. Kd1 {[%emt 0:07:36]} Ba3 {[%emt 0:01:24]} 26. Rc2 {[%emt 0:01:02]} Ra1+ {[%emt 0:04:40]} 27. Ke2 {[%emt 0:00:06]} Bd6 {[%emt 0:03:14]} 28. d4 {[%emt 0:04:22]} h5 {[%emt 0:04:36][%cal Og6g5]} 29. Kf3 {[%emt 0:01:07]} Rb1 {[%emt 0:01:38]} 30. Ra2 {[%emt 0:05:58]} b5 {[%emt 0:01:06]} 31. Bxb5 {[%emt 0:00:31]} Rxb3 {[%emt 0:00:09]} 32. Ra8+ {[%emt 0:00:00]} Ke7 {[%emt 0:00:20]} 33. Ba4 {[%emt 0:00:21]} Rb2 {[%emt 0:07:04]} 34. Re8+ {[%emt 0:02:19]} Kf6 {[%emt 0:00:13]} 35. Rd8 {[%emt 0:01:32]} Bb4 {[%emt 0:01:31]} 36. Rc8 {[%emt 0:07:12]} Be7 {[%emt 0:07:15]} 37. Rb8 {[%emt 0:01:05]} ({White should play} 37. Rc3 $15) 37... Rb4 {[%emt 0:00:22]} 38. Ra8 {[%emt 0:02:58]} Bd6 {[%emt 0:00:22]} 39. Be8 {[%emt 0:00:30]} Ke7 {[%emt 0:04:00]} 40. h3 {[%emt 0:01:48]} Rb2 {[%emt 0:03:40]} 41. Ba4 {[%emt 0:02:12]} Ra2 {[%emt 0:00:46]} 42. Re8+ {[%emt 0:00:34]} Kf6 {[%emt 0:00:09]} 43. Bb5 {[%emt 0:03:47]} Rb2 {[%emt 0:06:10]} 44. Bd3 {[%emt 0:03:14]} b5 {[%emt 0:00:44][%cal Bb7b5,Bb5b4,Bb4b3][%mdl 32]} 45. Rc8 {[%emt 0:00:39]} b4 {[%emt 0:00:25]} 46. Rc2 {[%emt 0:00:06]} Rb3 {[%emt 0:00:17]} 47. Ke2 {[%emt 0:02:05]} (47. Bb5 $142) 47... Ra3 {[%emt 0:00:54]} 48. Rc6 {[%emt 0:01:07]} Be7 {[%emt 0:07:30]} 49. Rb6 {[%emt 0:03:22]} b3 {[%emt 0:03:45]} 50. Kf3 {[%emt 0:00:37] [#]} Bd8 $1 {[%emt 0:01:41]} ({Stronger than} 50... b2 51. Bc2 $11) 51. Rb7 {[%emt 0:02:25] [#]} Ba5 {[%emt 0:05:55]} ({Not} 51... b2 52. Bb1 $11) ({Black should try} 51... Kg7 $1 $17 {aiming for ...Ba5.} 52. Be2 Bh4) 52. Bb5 $1 $11 {[%emt 0:04:47] The position is equal.} Bb4 {[%emt 0:05:41]} (52... b2 $5 53. Be8 Kg7 54. Rxb2 Kf8 $11) 53. Be8 {[%emt 0:00:08][%csl Ge8,LRb4,LRf7][%cal Rb7f7]} Be7 {[%emt 0:00:06]} 54. Kg2 {[%emt 0:01:34]} Ra2 {[%emt 0:01:07] And now ...b2 would win.} 55. Rxb3 {[%emt 0:00:28]} Kg7 {[%emt 0:00:10]} 56. Kg3 {[%emt 0:02:13]} Kf8 {[%emt 0:01:56]} 57. Bd7 {[%emt 0:00:50]} Bd8 {[%emt 0:01:50]} 58. Bb5 {[%emt 0:01:27]} Ba5 {[%emt 0:03:46]} 59. Kf3 {[%emt 0:00:51]} Kg7 {[%emt 0:00:51]} 60. Rb1 {[%emt 0:00:36]} Bd8 {[%emt 0:01:46]} 61. Kg3 {[%emt 0:00:30]} g5 {[%emt 0:00:28]} 62. fxg5 {[%emt 0:00:30]} Bxg5 {[%emt 0:00:10]} 63. Be8 {[%emt 0:01:16] Threatens to win with Rb7.} Be7 {[%emt 0:00:38]} 64. Bb5 {[%emt 0:00:39] Weighted Error Value: White=0.08 (flawless) /Black=0.07 (flawless)} 1/2-1/2

[Event "Tirnavia Reti Memorial-IM 2022"]
[Site "Trnava"]
[Date "2022.08.14"]
[Round "4.6"]
[White "Papp, Levente"]
[Black "Konyves, Almos"]
[Result "1/2-1/2"]
[ECO "D37"]
[WhiteElo "2394"]
[BlackElo "2229"]
[Annotator "RC"]
[PlyCount "94"]
[EventDate "2022.08.10"]
[EventType "tourn"]
[EventCountry "SVK"]
[SourceTitle "playchess.com"]
[Source "ChessBase"]
[SourceQuality "1"]
[TimeControl "40/5400+30:1800+30"]

1. d4 {[%emt 0:00:03]} Nf6 {[%emt 0:03:05]} 2. c4 {[%emt 0:00:15]} e6 {[%emt 0:00:05]} 3. Nf3 {[%emt 0:00:06]} d5 {[%emt 0:00:14]} 4. Nc3 {[%emt 0:00:06]} Be7 {[%emt 0:00:32]} 5. Bf4 {[%emt 0:00:16]} O-O {[%emt 0:00:36]} 6. a3 {[%emt 0:00:10]} Nbd7 {[%emt 0:02:51]} 7. Nb5 {[%emt 0:00:21]} Ne8 {[%emt 0:01:58]} 8. e3 {[%emt 0:00:07]} c6 {[%emt 0:03:48]} 9. Nc3 {[%emt 0:00:12]} Nef6 {[%emt 0:00:08]} 10. Qc2 {[%emt 0:00:22]} Re8 {[%emt 0:06:07]} 11. h3 {[%emt 0:01:56]} dxc4 {[%emt 0:01:21]} 12. Bxc4 {[%emt 0:00:36]} b5 {[%emt 0:00:02]} 13. Bd3 {[%emt 0:04:07]} Bb7 {[%emt 0:05:55]} 14. O-O {[%emt 0:04:13]} a6 {[%emt 0:04:55]} 15. b4 {[%emt 0:05:27]} a5 {[%emt 0:02:19]} 16. Rab1 {[%emt 0:01:16]} Nf8 {[%emt 0:05:34]} 17. Rfc1 {[%emt 0:12:00]} Ng6 {[%emt 0:06:36]} 18. Bg5 {[%emt 0:02:44]} axb4 {[%emt 0:08:18]} 19. axb4 {[%emt 0:00:06]} Ra3 {[%emt 0:00:04]} 20. Qb2 {[%emt 0:07:52]} Qa8 {[%emt 0:02:46]} 21. Bxg6 {[%emt 0:12:08]} hxg6 {[%emt 0:01:15]} 22. Ne5 {[%emt 0:01:27]} c5 {[%emt 0:13:56]} 23. bxc5 {[%emt 0:10:40]} Bxg2 {[%emt 0:00:31]} 24. Qxb5 {[%emt 0:21:37]} Ra5 {[%emt 0:12:44]} 25. Qe2 {[%emt 0:03:08]} Bxc5 {[%emt 0:13:28]} 26. dxc5 {[%emt 0:05:52]} Rxc5 {[%emt 0:00:03]} 27. f4 {[%emt 0:01:09]} Bxh3 {[%emt 0:03:22]} 28. Qf3 {[%emt 0:01:16]} Qxf3 {[%emt 0:00:36]} 29. Nxf3 {[%emt 0:00:00]} Bf5 {[%emt 0:00:41]} 30. Ra1 {[%emt 0:02:09]} Rec8 {[%emt 0:00:20]} 31. Bxf6 {[%emt 0:02:03]} gxf6 {[%emt 0:00:04]} 32. Ne2 {[%emt 0:00:05]} Rxc1+ {[%emt 0:00:03]} 33. Rxc1 {[%emt 0:01:35]} Rxc1+ {[%emt 0:00:07]} 34. Nxc1 {[%emt 0:00:01]} Bg4 {[%emt 0:00:38]} 35. Kf2 {[%emt 0:00:31]} Kg7 {[%emt 0:00:30]} 36. Kg3 {[%emt 0:00:58]} Bxf3 {[%emt 0:01:01]} 37. Kxf3 {[%emt 0:00:01]} f5 {[%emt 0:00:06]} 38. Nd3 {[%emt 0:00:52]} f6 {[%emt 0:00:04]} 39. Kg3 {[%emt 0:00:36]} g5 {[%emt 0:00:12]} 40. Kf3 {[%emt 0:01:15]} Kf7 {[%emt 0:01:22]} 41. Ke2 {[%emt 0:04:53]} Ke7 {[%emt 0:01:59]} 42. Kd2 {[%emt 0:12:10]} Kd6 {[%emt 0:00:53]} 43. fxg5 {[%emt 0:02:40]} fxg5 {[%emt 0:00:04]} 44. Nf2 {[%emt 0:00:27]} Ke5 {[%emt 0:01:07]} 45. Ke2 {[%emt 0:00:32]} Kf6 {[%emt 0:00:21]} 46. Kf3 {[%emt 0:00:43]} e5 {[%emt 0:00:11]} 47. e4 {[%emt 0:00:19]} fxe4+ {[%emt 0:00:04]} 1/2-1/2

[Event "Tirnavia Reti Memorial-IM 2022"]
[Site "Trnava"]
[Date "2022.08.13"]
[Round "4.7"]
[White "Skreko, Igor"]
[Black "Leszko, Bence"]
[Result "1/2-1/2"]
[ECO "D32"]
[WhiteElo "2193"]
[BlackElo "2241"]
[Annotator "TA"]
[PlyCount "129"]
[EventDate "2022.08.10"]
[EventType "tourn"]
[EventCountry "SVK"]
[SourceTitle "playchess.com"]
[Source "ChessBase"]
[SourceQuality "1"]
[TimeControl "40/5400+30:1800+30"]

{[%evp 12,129,56,44,49,57,66,29,39,35,33,10,10,16,70,50,77,14,21,0,0,0,0,-8,6,-4,33,28,27,0,68,68,64,69,87,88,106,104,105,92,110,106,102,94,116,113,127,116,168,135,135,135,134,133,139,52,45,54,46,45,60,63,55,56,63,53,56,56,50,0,0,0,66,66,66,5,8,7,10,0,0,0,0,0,16,16,28,16,16,16,17,23,17,17,20,0,0,0,0,0,0,-27,-22,-31,0,0,0,-8,0,0,0,0,0,0,0,0,0,0,0,0]} 1. d4 {[%emt 0:00:03]} d5 {[%emt 0:02:20]} 2. c4 {[%emt 0:00:06]} e6 {[%emt 0:00:05]} 3. Nc3 {[%emt 0:00:18]} c5 {[%emt 0:00:04]} 4. cxd5 {[%emt 0:00:22]} cxd4 {[%emt 0:00:06]} 5. Qa4+ {[%emt 0:00:31]} Bd7 {[%emt 0:00:07]} 6. Qxd4 {[%emt 0:00:09]} exd5 {[%emt 0:00:10]} 7. Qxd5 {[%emt 0:00:05]} ({Reject} 7. Nxd5 Nc6 8. Qf4 Qa5+ 9. Nc3 (9. Qd2 Bb4 $17) 9... Nb4 $11) 7... Nf6 {[%emt 0:00:05] D32: Tarrasch Defence: Sidelines and lines without g3.} 8. Qd1 {[%emt 0:00:23]} Bc5 {[%emt 0:00:07]} 9. e3 {[%emt 0:00:56]} O-O $1 {[%emt 0:00:10][%mdl 4] White has an edge. now scores much better than the old 9...Nc6.} 10. Nf3 {[%emt 0:00:51]} Qe7 {[%emt 0:00:08] [#]} 11. Bc4 $146 {[%emt 0:02:32]} ({Predecessor:} 11. Be2 Rd8 12. O-O Nc6 13. a3 Rac8 14. Qc2 Bd6 15. Rd1 Ne5 16. Nd4 Neg4 17. g3 Rc5 18. e4 Rh5 19. Bxg4 Nxg4 20. Nd5 Qe8 21. h4 {½-½ (30) Mamedyarov,S (2759)-Boruchovsky,A (2551) Chennai 2022}) 11... Rd8 {[%emt 0:17:22][%cal Od7h3]} 12. Qe2 {[%emt 0:01:32]} Bc6 {[%emt 0:08:05] Against e4} (12... Nc6 $11) 13. O-O $14 {[%emt 0:04:07]} Nbd7 {[%emt 0:00:34]} 14. Bb3 {[%emt 0:05:39]} (14. Nd4 $16) 14... Ne5 $11 {[%emt 0:02:01]} 15. Nxe5 {[%emt 0:03:26]} (15. Nd4 $5) 15... Qxe5 {[%emt 0:00:07]} 16. Ba4 {[%emt 0:14:55]} Bxa4 {[%emt 0:07:08]} 17. Nxa4 {[%emt 0:00:15]} Bd6 {[%emt 0:00:15][%csl Gd6][%cal Re5h2] [#]} 18. g3 {[%emt 0:02:24]} Rac8 {[%emt 0:03:54]} 19. Bd2 {[%emt 0:05:49]} Ne4 {[%emt 0:03:02]} 20. Rac1 {[%emt 0:02:29] Inhibits Rc2.} (20. Rfd1 {keeps more tension.} Rc2 21. Rac1 Ng5 22. e4) 20... Qe6 {[%emt 0:09:28]} (20... Qd5 $11 21. Rxc8 Rxc8) 21. Rxc8 $1 $14 {[%emt 0:03:52]} Rxc8 {[%emt 0:00:13]} 22. Nc3 $1 {[%emt 0:04:32]} Nxd2 {[%emt 0:16:59]} 23. Qxd2 {[%emt 0:00:21]} Bb4 {[%emt 0:00:09]} 24. Rc1 {[%emt 0:09:28]} g6 {[%emt 0:03:47]} 25. a3 {[%emt 0:01:07]} Ba5 {[%emt 0:01:06]} 26. b4 {[%emt 0:08:57]} Bb6 {[%emt 0:01:21]} 27. Na4 {[%emt 0:02:30]} Rd8 {[%emt 0:00:31]} 28. Qc3 {[%emt 0:00:54]} h5 {[%emt 0:01:02][%cal Bh7h5,Bh5h4,Bh4h3][%mdl 32]} 29. Nxb6 {[%emt 0:05:15]} axb6 $16 {[%emt 0:01:06][%mdl 4096] Endgame KQR-KQR} (29... Qxb6 $16 30. Qe5 Qd6 31. Qxd6 Rxd6) 30. Qc7 {[%emt 0:02:06]} Rd7 {[%emt 0:00:07]} 31. Qc8+ {[%emt 0:00:40]} Kg7 {[%emt 0:00:53][%cal Od7d1]} 32. Qc3+ {[%emt 0:00:59]} Kh7 {[%emt 0:01:19][%cal Oh5h4]} 33. Qb2 {[%emt 0:01:49]} ({White should try} 33. h4 $16) 33... h4 $1 $14 {[%emt 0:02:00]} 34. Qe2 {[%emt 0:05:24]} h3 $1 {[%emt 0:06:10]} 35. Qf3 {[%emt 0:01:37]} Kg7 {[%emt 0:00:30]} 36. g4 $1 {[%emt 0:01:28]} Rd5 $1 {[%emt 0:00:07]} 37. Qxh3 {[%emt 0:06:54] Black must now prevent Qg3.} Rg5 $1 {[%emt 0:00:01]} 38. Qf3 {[%emt 0:00:30] [#] Hoping for h3.} Rxg4+ {[%emt 0:00:06]} 39. Kh1 {[%emt 0:00:12]} Rg5 {[%emt 0:01:38]} 40. Qf4 {[%emt 0:03:49]} ({Avoid the trap} 40. Qxb7 $2 Rd5 41. Kg1 Qe4 $19) (40. e4 $5 {[%cal Rc1c7]}) 40... Rg4 {[%emt 0:01:06]} 41. Qf3 {[%emt 0:01:57]} Rg5 $1 {[%emt 0:00:06]} 42. e4 $1 {[%emt 0:04:13]} ({Don't blunder} 42. Qxb7 $2 Rd5 43. Kg1 Qe4 44. Qxd5 Qxd5 $19) 42... Re5 {[%emt 0:02:46]} 43. Qc3 {[%emt 0:01:34]} (43. Re1 $1 $14) 43... Kh7 $1 $11 {[%emt 0:00:48]} 44. f3 {[%emt 0:00:46]} Rh5 {[%emt 0:05:46]} 45. Qc7 {[%emt 0:02:20]} Qf6 {[%emt 0:00:21]} 46. Qg3 {[%emt 0:02:50]} Qb2 {[%emt 0:00:48]} 47. Qf4 {[%emt 0:02:13]} Kg7 {[%emt 0:01:30]} 48. Rc7 {[%emt 0:01:50][%csl LRb7,LRf7]} Qb3 {[%emt 0:00:11]} 49. Rd7 {[%emt 0:02:01]} b5 {[%emt 0:07:10]} 50. Rd6 {[%emt 0:01:19]} Qc3 {[%emt 0:00:48] Prevents Qf6+.} 51. Kg2 {[%emt 0:01:28]} Qb2+ {[%emt 0:07:02]} 52. Qd2 {[%emt 0:01:33]} Qe5 {[%emt 0:00:05]} 53. Kg1 {[%emt 0:02:14] Threatens to win with Qd4.} Qa1+ {[%emt 0:04:05]} 54. Qd1 {[%emt 0:00:35]} Qa2 {[%emt 0:00:39]} 55. Rd2 {[%emt 0:02:03]} Qxa3 {[%emt 0:00:21]} 56. Rd7 {[%emt 0:03:57]} Qe3+ {[%emt 0:04:24]} 57. Kh1 {[%emt 0:00:42]} Kg8 {[%emt 0:00:46] Strongly threatening ...Qf2.} 58. Rd8+ {[%emt 0:01:00] The position is equal.} Kh7 {[%emt 0:00:06] aiming for ...Qf2.} 59. Rd7 {[%emt 0:00:23]} Qf2 {[%emt 0:05:01][%csl Gh5][%cal Rf2h2]} 60. Rxf7+ {[%emt 0:03:09]} Kg8 {[%emt 0:00:30][%csl Gh5][%cal Rf2h2]} 61. Qd8+ {[%emt 0:02:17]} Kxf7 {[%emt 0:00:00][%csl Gh5][%cal Rf2h2]} 62. Qd7+ {[%emt 0:00:39]} Kf6 {[%emt 0:00:34][%csl Gh5][%cal Rf2h2]} 63. Qd6+ {[%emt 0:00:10]} Kg7 {[%emt 0:00:09][%cal Rf2f1]} 64. Qc7+ $1 {[%emt 0:00:21]} Kf6 {[%emt 0:01:08][%cal Rf2f1]} 65. Qd6+ {[%emt 0:00:04] Weighted Error Value: White=0.10 (very precise) /Black=0.08 (flawless)} 1/2-1/2

[Event "Tirnavia Reti Memorial-IM 2022"]
[Site "Trnava"]
[Date "2022.08.14"]
[Round "5.6"]
[White "Lanc, Alois"]
[Black "Papp, Levente"]
[Result "0-1"]
[ECO "C16"]
[WhiteElo "2263"]
[BlackElo "2394"]
[Annotator "RC"]
[PlyCount "76"]
[EventDate "2022.08.10"]
[EventType "tourn"]
[EventCountry "SVK"]
[SourceTitle "playchess.com"]
[Source "ChessBase"]
[SourceQuality "1"]
[TimeControl "40/5400+30:1800+30"]

1. e4 {[%emt 0:00:12]} e6 {[%emt 0:00:07]} 2. d4 {[%emt 0:00:46]} d5 {[%emt 0:00:06]} 3. Nc3 {[%emt 0:00:15]} Bb4 {[%emt 0:00:08]} 4. e5 {[%emt 0:00:26]} Ne7 {[%emt 0:00:06]} 5. a3 {[%emt 0:00:28]} Bxc3+ {[%emt 0:00:06]} 6. bxc3 {[%emt 0:00:06]} b6 {[%emt 0:00:05]} 7. Qg4 {[%emt 0:01:43]} Ng6 {[%emt 0:00:06]} 8. h4 {[%emt 0:00:54]} h5 {[%emt 0:00:05]} 9. Qd1 {[%emt 0:01:14]} c5 {[%emt 0:00:11]} 10. Bg5 {[%emt 0:02:35]} f6 {[%emt 0:00:58]} 11. exf6 {[%emt 0:00:57]} gxf6 {[%emt 0:00:02]} 12. Be3 {[%emt 0:02:26]} Qc7 {[%emt 0:00:07]} 13. Bd3 {[%emt 0:07:51]} Ne7 {[%emt 0:00:37]} 14. Nh3 {[%emt 0:04:36]} cxd4 {[%emt 0:07:46]} 15. cxd4 {[%emt 0:00:29]} Qc3+ {[%emt 0:00:06]} 16. Kf1 {[%emt 0:01:09]} Ba6 {[%emt 0:00:31]} 17. Nf4 {[%emt 0:07:07]} Kd7 {[%emt 0:03:09]} 18. Rc1 {[%emt 0:05:39]} Nf5 {[%emt 0:13:24]} 19. Rh3 {[%emt 0:07:56]} Bxd3+ {[%emt 0:28:39]} 20. cxd3 {[%emt 0:05:02]} Qxa3 {[%emt 0:00:27]} 21. Nxh5 {[%emt 0:09:23]} Rxh5 {[%emt 0:12:39]} 22. Qxh5 {[%emt 0:00:36]} Nxe3+ {[%emt 0:00:08]} 23. Rxe3 {[%emt 0:00:11]} Qxc1+ {[%emt 0:00:07]} 24. Re1 {[%emt 0:00:07]} Qa3 {[%emt 0:00:18]} 25. Qh8 {[%emt 0:06:33]} Qxd3+ {[%emt 0:08:25]} 26. Kg1 {[%emt 0:00:11]} Qc3 {[%emt 0:01:03]} 27. Re3 {[%emt 0:04:21]} Qc1+ {[%emt 0:01:02]} 28. Kh2 {[%emt 0:00:16]} Qc7+ {[%emt 0:00:05]} 29. Kg1 {[%emt 0:10:30]} Qd8 {[%emt 0:01:01]} 30. Qg7+ {[%emt 0:00:26]} Qe7 {[%emt 0:00:05]} 31. Qg8 {[%emt 0:00:24]} Qe8 {[%emt 0:04:55]} 32. Qg7+ {[%emt 0:00:49]} Kd6 {[%emt 0:01:30]} 33. Qxf6 {[%emt 0:09:42]} Nc6 {[%emt 0:00:42]} 34. h5 {[%emt 0:00:53]} Qe7 {[%emt 0:00:56]} 35. Qf4+ {[%emt 0:00:15]} Kd7 {[%emt 0:00:02]} 36. Rg3 {[%emt 0:02:33]} Rf8 {[%emt 0:02:23]} 37. Qg4 {[%emt 0:00:02]} Qf7 {[%emt 0:03:17]} 38. Rf3 {[%emt 0:00:48]} Qg8 {[%emt 0:00:16]} 0-1